bitfinex/quotes_SOLUSD_20241226
["timestamp","ask_amount","ask_price","bid_price","bid_amount"]
[1735236341843,8.75190381,187.8,187.67,0.12549]
[1735236342167,6.98364363,187.85,187.72,0.12549]
[1735236342352,7.7069,187.85,187.74,0.12549]
[1735236342670,7.19010381,187.88,187.77,19.76722678]
[1735236342855,7.7069,187.9,187.78,0.12549]
[1735236343168,7.7069,187.9,187.76,19.76722678]
[1735236343351,7.7069,187.9,187.78,0.12549]
[1735236343552,7.19010381,187.93,187.8,0.12549]
[1735236343851,7.19010381,187.93,187.77,0.79850985]
[1735236344044,23.776884,187.92,187.72,19.76722678]
[1735236344244,3.80432066,187.91,187.72,19.76722678]
[1735236344444,7.83239,187.89,187.67,0.79872121]
[1735236344655,7.83239,187.89,187.66,20.0]
[1735236344656,23.776884,187.85,187.66,20.0]
[1735236344971,20.0,187.81,187.66,20.0]
[1735236345345,20.0,187.81,187.67,0.12549]
[1735236345845,20.0,187.79,187.67,0.12549]
[1735236346065,20.0,187.79,187.66,20.0]
[1735236346669,1.5591,187.78,187.66,20.0]
[1735236346868,20.0,187.76,187.66,20.0]
[1735236347664,6.655,187.75,187.66,20.0]
[1735236351445,1.5591,187.78,187.67,0.12549]
[1735236352573,1.5591,187.78,187.66,20.0]
[1735236352780,20.0,187.76,187.66,20.0]
[1735236353156,20.0,187.76,187.67,0.12549]
[1735236353471,1.5591,187.78,187.67,0.12549]
[1735236353981,1.5591,187.78,187.66,20.0]
[1735236354177,20.0,187.77,187.66,20.0]
[1735236354482,20.0,187.77,187.67,0.12549]
[1735236355276,20.0,187.77,187.67,24.70135002]
[1735236355468,20.0,187.77,187.67,0.12549]
[1735236356352,20.0,187.77,187.67,23.902374]
[1735236356551,1.39877135,187.79,187.69,0.12549]
[1735236358163,1.39877135,187.79,187.68,0.12549]
[1735236358387,20.0,187.77,187.68,0.12549]
[1735236358770,20.0,187.77,187.67,0.12549]
[1735236359779,20.0,187.77,187.66,20.0]
[1735236359984,27.16830956,187.77,187.66,20.0]
[1735236362491,20.0,187.73,187.66,20.0]
[1735236363572,23.776884,187.72,187.66,20.0]
[1735236363758,20.0,187.69,187.66,13.1506]
[1735236364485,30.96698781,187.72,187.66,0.0001]
[1735236364486,20.0,187.67,187.66,0.0001]
[1735236364659,20.0,187.67,187.54,6.5683]
[1735236364862,20.0,187.67,187.54,26.33552678]
[1735236365078,20.0,187.67,187.54,6.5683]
[1735236365980,34.79547405,187.72,187.54,6.5683]
[1735236365981,1.6477,187.73,187.57,19.89271678]
[1735236366283,1.6477,187.73,187.59,0.12549]
[1735236366700,1.6477,187.73,187.58,0.12549]
[1735236366871,1.6477,187.73,187.58,23.902374]
[1735236367273,1.6477,187.73,187.58,0.12549]
[1735236367474,1.6477,187.73,187.56,43.54411078]
[1735236367677,1.6477,187.73,187.57,19.89271678]
[1735236367979,1.6477,187.73,187.59,0.12549]
[1735236368275,20.0,187.72,187.59,0.12549]
[1735236368498,20.0,187.72,187.56,19.76722678]
[1735236368866,25.73342193,187.72,187.54,7.36754164]
[1735236369093,20.0,187.68,187.55,23.902374]
[1735236369388,20.0,187.68,187.54,6.5683]
[1735236369568,20.0,187.68,187.55,0.12549]
[1735236369978,20.0,187.68,187.55,23.902374]
[1735236370402,1.6477,187.73,187.58,19.76722678]
[1735236370572,1.6477,187.73,187.61,0.12549]
[1735236370921,6.2921,187.75,187.61,0.12549]
[1735236371293,5.73342193,187.76,187.65,23.902374]
[1735236371473,1.6482,187.77,187.64,6.82299329]
[1735236371794,1.6482,187.77,187.64,6.024]
[1735236372765,20.0,187.76,187.64,6.024]
[1735236373197,20.0,187.72,187.62,1.5597]
[1735236373503,20.0,187.72,187.59,25.79122678]
[1735236373867,20.0,187.72,187.6,43.66960078]
[1735236374065,20.0,187.72,187.62,23.902374]
[1735236374793,5.73342193,187.75,187.64,23.902374]
[1735236374987,1.6482,187.77,187.64,0.12549]
[1735236375503,5.73342193,187.76,187.64,0.12549]
[1735236375874,5.73342193,187.76,187.63,23.902374]
[1735236376074,5.73342193,187.76,187.65,0.12549]
[1735236376314,5.73342193,187.76,187.67,0.12549]
[1735236376484,5.73342193,187.76,187.62,19.76722678]
[1735236376676,20.0,187.73,187.62,19.76722678]
[1735236377090,20.0,187.73,187.63,23.902374]
[1735236377394,5.73342193,187.76,187.63,44.46873646]
[1735236378605,5.73342193,187.76,187.63,24.70150968]
[1735236379411,5.73342193,187.76,187.63,44.46873646]
[1735236379594,5.73342193,187.76,187.65,0.12549]
[1735236379899,5.73342193,187.76,187.65,23.902374]
[1735236380102,20.0,187.76,187.67,0.12549]
[1735236380903,12.71706556,187.8,187.69,0.12549]
[1735236381114,1.6257,187.82,187.68,1.5869]
[1735236381316,5.73342193,187.79,187.68,1.5869]
[1735236382508,20.0,187.76,187.68,1.5869]
[1735236383815,5.73342193,187.79,187.69,0.12549]
[1735236384105,5.73342193,187.79,187.68,7.8869]
[1735236384297,20.0,187.76,187.63,7.8869]
[1735236384687,25.73342193,187.76,187.64,0.12549]
[1735236385110,25.73342193,187.76,187.63,7.8869]
[1735236385317,20.0,187.73,187.63,7.8869]
[1735236387521,8.60934363,187.82,187.67,23.902374]
[1735236387687,8.60934363,187.82,187.69,0.12549]
[1735236388005,5.73342193,187.83,187.71,0.12549]
[1735236388205,5.73342193,187.83,187.72,7.9266]
[1735236389287,5.73342193,187.83,187.73,23.902374]
[1735236389487,6.98364363,187.88,187.75,23.902374]
[1735236389687,8.22504333,187.87,187.75,43.66960078]
[1735236390225,8.22504333,187.87,187.75,23.902374]
[1735236390424,5.73342193,187.88,187.75,43.66960078]
[1735236390716,5.73342193,187.88,187.72,28.49239311]
[1735236390883,20.0,187.85,187.73,19.76722678]
[1735236391085,20.0,187.85,187.76,0.12549]
[1735236391699,20.0,187.85,187.76,0.92406005]
[1735236392210,20.0,187.9,187.78,19.89271678]
[1735236392394,6.98364363,187.93,187.8,0.12549]
[1735236392710,8.22504333,187.95,187.84,0.12549]
[1735236392909,15.20868696,187.99,187.86,0.12549]
[1735236393118,20.94210889,187.99,187.84,19.76722678]
[1735236393444,20.94210889,187.99,187.84,43.66960078]
[1735236393605,20.94210889,187.99,187.86,0.12549]
[1735236393915,20.94210889,187.99,187.85,19.76722678]
[1735236393916,12.71706556,187.99,187.83,19.76722678]
[1735236394291,20.0,187.96,187.84,0.12549]
[1735236394487,20.0,187.96,187.81,22.13200724]
[1735236394686,6.98364363,187.99,187.81,1.5666]
[1735236394687,20.0,187.95,187.81,1.5666]
[1735236394889,20.0,187.91,187.8,6.36]
[1735236396000,20.0,187.92,187.8,6.36]
[1735236397503,20.0,187.92,187.81,0.12549]
[1735236397718,20.0,187.92,187.81,43.66960078]
[1735236398003,11.13426552,187.99,187.83,0.12549]
[1735236398617,5.73342193,187.98,187.83,0.12549]
[1735236399125,5.73342193,187.98,187.87,23.902374]
[1735236399432,5.73342193,188.04,187.89,0.12549]
[1735236399602,5.73342193,188.04,187.89,19.89271678]
[1735236399798,12.05482193,188.04,187.9,6.36]
[1735236400025,23.776884,188.03,187.9,6.36]
[1735236400195,30.76052763,188.03,187.86,1.5666]
[1735236400394,5.73342193,188.02,187.86,1.5666]
[1735236400619,5.73342193,188.02,187.87,0.12549]
[1735236400828,20.0,187.99,187.87,0.12549]
[1735236401034,20.0,187.99,187.86,1.5666]
[1735236402031,20.0,187.99,187.87,23.902374]
[1735236402328,10.06973961,188.06,187.91,19.89271678]
[1735236402329,7.8849,188.06,187.91,19.89271678]
[1735236402499,5.73342193,188.08,187.93,0.12549]
[1735236402899,23.776884,188.07,187.89,19.76722678]
[1735236403124,23.776884,188.07,187.87,19.76722678]
[1735236403125,7.16830956,188.06,187.87,19.76722678]
[1735236403431,7.16830956,188.06,187.91,0.12549]
[1735236403922,7.16830956,188.06,187.93,0.12549]
[1735236404126,20.0,188.03,187.93,0.12549]
[1735236404533,20.0,188.03,187.9,19.76722678]
[1735236404703,20.0,188.03,187.88,0.79787222]
[1735236404704,20.0,188.03,187.89,19.76722678]
[1735236405024,20.0,188.02,187.86,21.33382678]
[1735236405210,20.0,188.02,187.87,19.76722678]
[1735236405420,20.0,188.02,187.88,43.66960078]
[1735236405715,20.0,188.03,187.92,0.12549]
[1735236405913,7.16830956,188.06,187.94,0.12549]
[1735236406130,6.4034,188.1,187.95,6.0222]
[1735236406341,13.59350381,188.1,187.95,6.0222]
[1735236406526,7.19010381,188.09,187.95,6.0222]
[1735236406820,15.22456181,188.09,187.95,6.0222]
[1735236407328,15.22456181,188.09,187.96,0.12549]
[1735236407630,15.22456181,188.09,187.98,0.12549]
[1735236407631,7.19010381,188.09,187.98,0.12549]
[1735236408010,7.19010381,188.09,187.97,1.5175]
[1735236409215,20.0,188.06,187.97,1.5175]
[1735236409424,20.0,188.06,187.98,0.12549]
[1735236409623,20.0,188.1,187.98,0.12549]
[1735236410227,20.0,188.1,187.98,23.902374]
[1735236410406,20.0,188.1,187.98,43.66960078]
[1735236410603,7.19010381,188.13,187.98,43.66960078]
[1735236410810,7.19010381,188.13,188.02,0.12549]
[1735236411044,6.4034,188.18,188.03,0.12549]
[1735236411342,11.02555407,188.18,188.05,23.902374]
[1735236411517,4.62215407,188.18,188.05,23.902374]
[1735236411721,4.62215407,188.18,188.07,0.12549]
[1735236413244,20.0,188.16,188.07,0.12549]
[1735236414442,20.0,188.16,188.07,23.902374]
[1735236414814,24.62215407,188.18,188.07,23.902374]
[1735236415915,6.98364363,188.22,188.07,23.902374]
[1735236416248,5.18232208,188.24,188.11,23.902374]
[1735236416540,5.18232208,188.3,188.18,23.902374]
[1735236416732,2.17793974,188.33,188.2,23.902374]
[1735236416932,6.98364363,188.33,188.2,0.12549]
[1735236417138,13.97681188,188.33,188.2,0.12549]
[1735236417430,13.97681188,188.33,188.2,23.902374]
[1735236417638,23.776884,188.31,188.19,6.4222]
[1735236417813,20.0,188.27,188.19,6.4222]
[1735236418131,20.0,188.23,188.15,1.643]
[1735236418351,26.99316825,188.27,188.15,1.643]
[1735236418520,20.0,188.23,188.15,1.643]
[1735236419427,20.0,188.24,188.15,1.643]
[1735236420813,20.0,188.24,188.16,0.12549]
[1735236421020,20.0,188.27,188.16,23.902374]
[1735236421317,20.0,188.27,188.15,1.643]
[1735236422137,20.0,188.27,188.16,23.902374]
[1735236422347,6.98364363,188.3,188.16,23.902374]
[1735236422857,6.98364363,188.3,188.15,1.643]
[1735236422858,23.776884,188.28,188.15,1.643]
[1735236423024,23.776884,188.26,188.15,1.643]
[1735236423486,20.0,188.23,188.15,1.643]
[1735236423661,20.0,188.24,188.15,1.643]
[1735236423821,6.98364363,188.27,188.16,23.902374]
[1735236424021,22.21730252,188.34,188.16,43.66960078]
[1735236424243,16.13050252,188.34,188.18,23.902374]
[1735236424538,16.13050252,188.34,188.18,43.66960078]
[1735236424715,16.13050252,188.34,188.18,23.902374]
[1735236425333,20.0,188.31,188.18,23.902374]
[1735236425627,9.13733427,188.34,188.18,23.902374]
[1735236425939,9.13733427,188.34,188.21,1.643]
[1735236426139,6.98364363,188.4,188.24,0.12549]
[1735236426346,6.98364363,188.4,188.26,0.12549]
[1735236426347,13.97681188,188.4,188.26,0.12549]
[1735236426646,13.97681188,188.4,188.27,6.4222]
[1735236426839,6.99316825,188.4,188.28,43.66960078]
[1735236427044,13.97681188,188.45,188.3,23.902374]
[1735236427257,23.776884,188.44,188.3,23.902374]
[1735236427460,6.99316825,188.44,188.3,23.902374]
[1735236428263,6.99316825,188.44,188.32,23.902374]
[1735236429056,6.99316825,188.44,188.31,23.902374]
[1735236429370,6.99316825,188.44,188.31,0.12549]
[1735236429547,6.99316825,188.44,188.29,1.643]
[1735236429746,6.99316825,188.44,188.3,23.902374]
[1735236430667,20.0,188.41,188.3,43.66960078]
[1735236430875,20.0,188.48,188.34,23.902374]
[1735236431178,4.15857873,188.49,188.34,23.902374]
[1735236431533,23.902374,188.48,188.33,6.4222]
[1735236431730,28.47322785,188.48,188.33,6.4222]
[1735236431983,23.776884,188.46,188.33,6.4222]
[1735236432330,20.0,188.43,188.33,6.4222]
[1735236432769,20.0,188.41,188.33,6.4222]
[1735236433642,20.0,188.41,188.29,1.643]
[1735236433643,23.776884,188.4,188.29,1.643]
[1735236433854,20.0,188.37,188.29,1.643]
[1735236436243,20.0,188.33,188.21,1.6213]
[1735236436442,20.0,188.32,188.21,1.6213]
[1735236436664,20.0,188.32,188.22,6.006]
[1735236437047,23.776884,188.31,188.22,6.006]
[1735236437256,20.0,188.28,188.22,6.006]
[1735236437784,20.0,188.31,188.22,6.006]
[1735236437978,20.0,188.3,188.22,6.006]
[1735236438146,20.0,188.29,188.22,6.006]
[1735236438854,0.12549,188.38,188.22,6.006]
[1735236439185,20.0,188.32,188.22,6.006]
[1735236439666,20.0,188.34,188.22,6.006]
[1735236439845,20.0,188.33,188.22,6.006]
[1735236441648,20.0,188.29,188.22,6.006]
[1735236441851,23.776884,188.28,188.21,1.6213]
[1735236442053,20.0,188.25,188.21,1.6213]
[1735236443863,20.0,188.25,188.17,6.006]
[1735236445768,20.0,188.28,188.17,6.006]
[1735236445947,20.0,188.28,188.18,0.12549]
[1735236446666,20.0,188.27,188.17,6.006]
[1735236447579,2.11377432,188.35,188.18,43.66960078]
[1735236447752,6.99316825,188.38,188.22,0.12549]
[1735236447955,6.99316825,188.38,188.24,0.12549]
[1735236448258,23.776884,188.37,188.24,0.12549]
[1735236448690,6.99316825,188.38,188.24,0.12549]
[1735236449287,20.0,188.35,188.24,0.12549]
[1735236449446,20.0,188.35,188.23,6.4384]
[1735236449647,20.0,188.31,188.23,6.4384]
[1735236449966,20.0,188.29,188.23,6.4384]
[1735236450365,20.0,188.28,188.23,6.4384]
[1735236453253,20.0,188.28,188.21,1.5892]
[1735236454582,20.0,188.32,188.21,1.5892]
[1735236454785,6.98364363,188.35,188.22,0.12549]
[1735236455072,6.98364363,188.35,188.22,23.902374]
[1735236455252,6.99316825,188.36,188.22,23.902374]
[1735236456578,20.0,188.33,188.24,0.12549]
[1735236457072,20.0,188.33,188.23,6.4384]
[1735236457371,23.776884,188.34,188.23,6.4384]
[1735236457575,20.0,188.29,188.23,6.4384]
[1735236457748,20.0,188.29,188.23,3.3778]
[1735236457949,20.0,188.27,188.21,1.5892]
[1735236459154,20.0,188.27,188.22,0.12549]
[1735236459471,20.0,188.35,188.22,23.902374]
[1735236459672,23.776884,188.34,188.21,1.5892]
[1735236459888,0.12549,188.33,188.21,1.5892]
[1735236460069,27.60537024,188.32,188.21,1.5892]
[1735236460274,23.776884,188.3,188.21,1.5892]
[1735236460592,20.0,188.27,188.21,1.5892]
[1735236460775,20.0,188.25,188.21,1.5892]
[1735236463191,20.0,188.25,188.21,0.0001]
[1735236463369,20.0,188.25,188.08,19.76722678]
[1735236463555,20.0,188.21,188.05,19.76722678]
[1735236463757,20.0,188.21,188.04,20.56441153]
[1735236463983,20.0,188.21,188.04,0.79718475]
[1735236464187,20.0,188.17,188.02,19.76722678]
[1735236464679,20.0,188.17,188.04,23.902374]
[1735236466183,20.0,188.17,188.0,19.76722678]
[1735236466487,20.0,188.17,188.02,6.202]
[1735236466992,20.0,188.17,188.03,23.902374]
[1735236467162,20.0,188.17,188.03,43.66960078]
[1735236467470,20.0,188.18,188.05,0.12549]
[1735236467890,20.0,188.18,188.07,0.12549]
[1735236468096,1.6113,188.22,188.07,0.12549]
[1735236468269,21.50204772,188.25,188.1,6.202]
[1735236468467,23.776884,188.24,188.1,6.202]
[1735236468957,21.50204772,188.25,188.1,6.202]
[1735236468958,15.33064772,188.25,188.11,23.902374]
[1735236469163,10.14832564,188.25,188.11,23.902374]
[1735236469364,20.0,188.22,188.11,23.902374]
[1735236470786,20.0,188.22,188.11,24.69949522]
[1735236470988,6.99316825,188.25,188.11,44.466722]
[1735236471584,6.99316825,188.25,188.11,24.69949522]
[1735236471791,6.99316825,188.25,188.11,44.466722]
[1735236472205,8.33747947,188.29,188.13,23.902374]
[1735236473072,5.59766774,188.28,188.13,23.902374]
[1735236473472,20.0,188.25,188.13,23.902374]
[1735236473678,20.0,188.25,188.15,43.66960078]
[1735236474082,20.0,188.25,188.15,23.902374]
[1735236478392,5.59766774,188.28,188.17,23.902374]
[1735236478591,5.18232208,188.33,188.19,23.902374]
[1735236478781,12.58131137,188.35,188.21,23.902374]
[1735236479372,6.98364363,188.35,188.21,23.902374]
[1735236479579,5.59766774,188.34,188.21,23.902374]
[1735236479995,20.0,188.31,188.21,23.902374]
[1735236480292,20.0,188.31,188.2,6.2602]
[1735236480505,20.0,188.31,188.21,23.902374]
[1735236480990,20.0,188.31,188.2,6.2602]
[1735236481199,20.0,188.29,188.2,6.2602]
[1735236481499,20.0,188.29,188.21,23.776884]
[1735236481882,5.59766774,188.32,188.21,23.776884]
[1735236482183,5.59766774,188.32,188.22,0.12549]
[1735236482699,5.59766774,188.32,188.21,23.776884]
[1735236482890,5.59766774,188.32,188.2,6.2602]
[1735236483095,20.0,188.29,188.2,6.2602]
[1735236483480,20.0,188.29,188.16,1.6384]
[1735236483692,20.0,188.25,188.16,1.6384]
[1735236484080,26.971374,188.25,188.15,6.2602]
[1735236484596,26.971374,188.25,188.12,1.6384]
[1735236485191,20.0,188.21,188.12,1.6384]
[1735236485712,20.0,188.21,188.1,6.2602]
[1735236487870,23.776884,188.2,188.1,6.2602]
[1735236488076,20.0,188.17,188.1,6.2602]
[1735236488687,20.0,188.17,188.07,1.6384]
[1735236489085,20.0,188.13,188.07,1.6384]
[1735236489284,23.902374,188.16,188.05,6.2602]
[1735236489505,20.0,188.13,188.03,1.6384]
[1735236489911,23.902374,188.12,188.01,6.2602]
[1735236490121,20.0,188.09,187.98,1.6384]
[1735236490325,23.776884,188.08,187.98,1.6384]
[1735236490612,20.0,188.09,187.98,1.6384]
[1735236490912,20.0,188.05,187.98,1.6384]
[1735236493517,20.0,188.09,187.98,1.6384]
[1735236493707,6.0327,188.12,187.98,1.6384]
[1735236494083,23.776884,188.11,187.98,1.6384]
[1735236495235,20.0,188.08,187.98,1.6384]
[1735236496227,20.0,188.1,187.99,23.902374]
[1735236496433,17.52199041,188.17,187.99,43.66960078]
[1735236496734,13.3904827,188.17,188.01,0.12549]
[1735236497336,23.902374,188.16,188.01,0.12549]
[1735236497498,23.902374,188.16,188.0,23.902374]
[1735236498239,5.2441827,188.17,188.02,0.12549]
[1735236498717,5.2441827,188.17,188.02,23.902374]
[1735236499742,20.0,188.14,188.02,23.902374]
[1735236500247,20.0,188.14,188.02,43.66960078]
[1735236500406,20.0,188.18,188.04,0.12549]
[1735236500905,20.0,188.18,188.04,23.902374]
[1735236501128,2.11320003,188.2,188.04,23.902374]
[1735236501323,14.93785255,188.21,188.04,23.902374]
[1735236501633,14.93785255,188.21,188.03,20.56463324]
[1735236501634,23.902374,188.2,188.05,1.5216]
[1735236501838,33.67701865,188.2,188.05,1.5216]
[1735236502048,5.1632079,188.19,188.05,1.5216]
[1735236502209,5.1632079,188.19,188.06,0.12549]
[1735236502424,20.0,188.17,188.06,0.12549]
[1735236502631,20.0,188.17,188.06,23.902374]
[1735236503053,20.0,188.17,188.08,0.12549]
[1735236503438,20.0,188.17,188.07,6.2719]
[1735236503758,22.79100102,188.17,188.07,6.2719]
[1735236506737,6.98364363,188.2,188.07,6.2719]
[1735236507157,30.76052763,188.2,188.07,6.2719]
[1735236507450,26.69337502,188.19,188.07,6.2719]
[1735236508161,20.0,188.16,188.07,6.2719]
[1735236517559,20.0,188.12,188.05,1.5216]
[1735236519545,20.0,188.12,188.01,7.7935]
[1735236520769,20.0,188.08,188.01,7.7935]
[1735236522642,22.16954283,188.12,188.01,7.7935]
[1735236522858,20.0,188.12,188.01,7.7935]
[1735236523572,20.0,188.12,188.02,0.12549]
[1735236523742,8.40093839,188.15,188.02,0.12549]
[1735236524077,1.41729476,188.15,188.02,24.69985319]
[1735236524243,2.10027546,188.16,188.02,24.69985319]
[1735236524558,23.902374,188.19,188.02,24.69985319]
[1735236525263,6.1823,188.2,188.02,24.69985319]
[1735236525571,1.41729476,188.19,188.02,24.69985319]
[1735236525948,23.902374,188.18,188.02,24.69985319]
[1735236526252,20.0,188.18,188.04,23.902374]
[1735236526450,20.0,188.18,188.04,24.69967796]
[1735236526649,1.41729476,188.19,188.06,30.508674]
[1735236526865,1.41729476,188.19,188.08,23.902374]
[1735236527073,5.57587349,188.23,188.1,0.12549]
[1735236528772,20.0,188.2,188.1,0.12549]
[1735236530181,20.0,188.2,188.1,23.902374]
[1735236530549,20.0,188.2,188.12,0.12549]
[1735236531074,5.57587349,188.23,188.12,23.902374]
[1735236531278,16.02,188.34,188.12,23.902374]
[1735236531279,15.20244089,188.31,188.14,43.66960078]
[1735236531580,5.1632079,188.3,188.14,44.46646063]
[1735236531787,5.1632079,188.3,188.16,23.902374]
[1735236531942,5.1632079,188.3,188.18,0.12549]
[1735236532147,16.07692334,188.31,188.18,0.12549]
[1735236532387,13.97681188,188.31,188.18,23.902374]
[1735236532689,6.99316825,188.31,188.18,44.46638367]
[1735236534090,20.0,188.28,188.18,44.46638367]
[1735236535966,20.0,188.28,188.21,19.76722678]
[1735236536181,20.0,188.33,188.22,0.92209706]
[1735236536671,16.10681157,188.36,188.24,0.12549]
[1735236536883,13.97681188,188.36,188.26,0.12549]
[1735236537598,6.99316825,188.36,188.26,0.12549]
[1735236537772,23.776884,188.35,188.25,1.6069]
[1735236538266,20.0,188.32,188.25,1.6069]
[1735236538594,20.0,188.31,188.13,19.76722678]
[1735236538767,20.0,188.27,188.12,20.56400236]
[1735236538970,20.0,188.27,188.13,19.76722678]
[1735236539294,20.0,188.29,188.14,20.56409229]
[1735236539498,20.0,188.27,188.14,20.56409229]
[1735236541184,20.0,188.28,188.14,20.56409229]
[1735236541710,20.0,188.28,188.19,1.6069]
[1735236542595,4.13150771,188.35,188.22,24.69913262]
[1735236542898,4.13150771,188.35,188.22,0.12549]
[1735236543644,4.13150771,188.35,188.22,24.69900517]
[1735236543805,6.99316825,188.37,188.22,24.69900517]
[1735236543988,9.09345601,188.37,188.24,0.12549]
[1735236544186,6.99316825,188.37,188.24,0.12549]
[1735236544873,6.99316825,188.37,188.26,0.12549]
[1735236545271,6.99316825,188.37,188.26,0.92191163]
[1735236545580,6.99316825,188.37,188.27,6.2373]
[1735236545779,6.99316825,188.37,188.28,0.12549]
[1735236546284,20.0,188.34,188.28,0.12549]
[1735236547616,4.13150771,188.4,188.28,23.902374]
[1735236547908,6.0129,188.47,188.27,7.033712]
[1735236547909,23.902374,188.41,188.29,1.6171]
[1735236548110,13.97681188,188.4,188.29,1.6171]
[1735236549215,20.0,188.37,188.29,1.6171]
[1735236549387,20.0,188.37,188.3,0.12549]
[1735236550413,16.13065295,188.44,188.3,23.902374]
[1735236550712,6.98364363,188.44,188.3,23.902374]
[1735236552206,20.0,188.41,188.3,23.902374]
[1735236553326,20.0,188.41,188.32,0.12549]
[1735236553510,20.0,188.41,188.31,6.4666]
[1735236553886,20.0,188.4,188.31,6.4666]
[1735236555391,20.0,188.39,188.31,6.4666]
[1735236556013,20.0,188.41,188.32,0.12549]
[1735236556228,6.98364363,188.44,188.32,0.12549]
[1735236557910,6.98364363,188.44,188.34,23.902374]
[1735236558217,5.18232208,188.48,188.34,23.902374]
[1735236558604,12.17549033,188.48,188.34,23.902374]
[1735236560313,20.0,188.45,188.34,0.12549]
[1735236560616,5.18232208,188.48,188.33,1.6532]
[1735236560617,20.0,188.43,188.33,1.6532]
[1735236561193,20.0,188.44,188.34,0.12549]
[1735236561422,20.0,188.44,188.33,1.6532]
[1735236562210,20.0,188.4,188.33,1.6532]
[1735236562522,20.0,188.4,188.31,6.4666]
[1735236562892,23.776884,188.39,188.31,6.4666]
[1735236563110,23.776884,188.39,188.22,6.4666]
[1735236563111,20.0,188.36,188.22,6.4666]
[1735236563517,20.0,188.36,188.23,0.12549]
[1735236564527,20.0,188.36,188.23,44.434239]
[1735236564718,20.0,188.37,188.23,44.434239]
[1735236564895,20.0,188.33,188.22,6.4666]
[1735236565335,20.0,188.33,188.23,1.595]
[1735236565996,20.0,188.33,188.24,0.12549]
[1735236566226,20.0,188.37,188.24,23.902374]
[1735236566596,6.4957,188.47,188.3,0.12549]
[1735236566800,6.98364363,188.46,188.31,6.2854]
[1735236567114,6.98364363,188.46,188.32,0.12549]
[1735236567316,6.98364363,188.46,188.32,43.63768841]
[1735236567822,4.13150771,188.47,188.34,23.902374]
[1735236568031,13.98633725,188.48,188.34,23.902374]
[1735236568214,16.11860111,188.48,188.34,23.902374]
[1735236568695,16.11860111,188.48,188.33,23.902374]
[1735236568897,20.0,188.45,188.33,23.902374]
[1735236569328,20.0,188.45,188.33,43.63768841]
[1735236569502,20.0,188.45,188.35,0.12549]
[1735236569908,1.5313,188.58,188.39,19.73531441]
[1735236570110,1.5313,188.58,188.36,8.67653176]
[1735236570111,1.5313,188.58,188.4,19.86080441]
[1735236570423,1.5313,188.58,188.42,0.12549]
[1735236570939,23.902374,188.57,188.42,0.12549]
[1735236571328,1.5313,188.58,188.38,20.53113149]
[1735236571526,23.902374,188.57,188.39,23.902374]
[1735236571711,20.0,188.54,188.39,23.902374]
[1735236573129,23.776884,188.53,188.39,0.12549]
[1735236573339,20.0,188.5,188.35,19.73531441]
[1735236573545,20.0,188.5,188.34,19.73531441]
[1735236574031,23.902374,188.54,188.37,0.12549]
[1735236574204,20.0,188.47,188.33,19.73531441]
[1735236574720,20.0,188.47,188.33,20.53139658]
[1735236574915,20.0,188.47,188.33,0.79608217]
[1735236575524,20.0,188.47,188.31,19.73531441]
[1735236575821,20.0,188.43,188.36,6.2854]
[1735236577516,20.0,188.39,188.32,6.1509]
[1735236577867,20.0,188.35,188.27,6.1509]
[1735236582554,20.0,188.4,188.27,6.1509]
[1735236582929,20.0,188.4,188.28,0.12549]
[1735236583524,20.0,188.36,188.27,6.1509]